bitfinex/quotes_BTCUSD_20220306
["timestamp","ask_amount","ask_price","bid_price","bid_amount"]
[1646609643758,0.01534626,38467.0,38462.0,0.001]
[1646609643759,0.06534626,38467.0,38462.0,0.001]
[1646609643961,0.01367144,38465.0,38462.0,0.001]
[1646609644158,0.01586366,38464.0,38462.0,0.001]
[1646609644359,0.15481575,38464.0,38462.0,0.001]
[1646609644559,0.31180719,38463.0,38462.0,0.001]
[1646609644762,0.31180719,38463.0,38455.0,0.37017482]
[1646609644763,0.3,38463.0,38455.0,0.37017482]
[1646609644959,0.3,38463.0,38452.0,1.00894965]
[1646609644960,0.35,38463.0,38452.0,1.00894965]
[1646609645161,0.18294456,38457.0,38452.0,0.81777482]
[1646609645360,0.05,38456.0,38452.0,0.81777482]
[1646609645559,0.9,38454.0,38447.0,0.002]
[1646609645764,0.2172469,38455.0,38448.0,0.48513437]
[1646609645765,0.3,38453.0,38448.0,0.48513437]
[1646609645960,0.05,38453.0,38447.0,0.002]
[1646609646361,0.3473269,38455.0,38447.0,0.002]
[1646609646564,0.6473269,38455.0,38447.0,0.002]
[1646609646759,0.16732845,38449.0,38447.0,0.002]
[1646609646960,0.43008,38455.0,38447.0,0.002]
[1646609647224,0.13008,38455.0,38447.0,0.002]
[1646609647517,0.20777693,38451.0,38447.0,0.002]
[1646609647717,0.05,38451.0,38447.0,0.002]
[1646609648216,0.32652852,38452.0,38447.0,0.002]
[1646609648421,0.002,38459.0,38447.0,0.002]
[1646609648717,0.002,38459.0,38449.0,2.79350465]
[1646609648917,0.19363862,38458.0,38449.0,2.79350465]
[1646609649122,0.195099,38463.0,38450.0,0.1]
[1646609649316,0.17379525,38454.0,38451.0,0.18142567]
[1646609649516,0.23882825,38454.0,38447.0,0.002]
[1646609649923,0.3,38453.0,38447.0,0.002]
[1646609650122,0.21154967,38449.0,38447.0,0.002]
[1646609650318,0.07396777,38450.0,38447.0,0.002]
[1646609650518,0.07396777,38450.0,38441.0,0.002]
[1646609650719,0.21961064,38450.0,38441.0,0.002]
[1646609650949,0.17573527,38443.0,38441.0,0.002]
[1646609651164,0.46690527,38443.0,38441.0,0.002]
[1646609651352,0.56640527,38443.0,38441.0,0.002]
[1646609651551,0.26640527,38443.0,38441.0,0.002]
[1646609651753,0.9,38442.0,38434.0,0.31731963]
[1646609651952,0.49120477,38436.0,38433.0,0.31731963]
[1646609652153,0.49120477,38436.0,38431.0,0.37263635]
[1646609652154,0.130163,38435.0,38431.0,0.37263635]
[1646609652350,0.130163,38435.0,38425.0,0.33031963]
[1646609652351,0.19458371,38430.0,38425.0,0.33031963]
[1646609652552,0.19458371,38430.0,38416.0,0.4533]
[1646609652553,0.065082,38429.0,38423.0,0.33032963]
[1646609652751,0.065082,38429.0,38418.0,0.33032963]
[1646609653053,0.17384188,38437.0,38418.0,0.33032963]
[1646609653054,0.065083,38430.0,38426.0,0.21519806]
[1646609653352,0.4808,38440.0,38429.0,0.08491877]
[1646609653550,0.19523,38439.0,38429.0,0.08491877]
[1646609653748,0.19859236,38432.0,38429.0,0.07991877]
[1646609654152,0.05,38431.0,38429.0,0.07991877]
[1646609654355,0.180154,38431.0,38429.0,0.07991877]
[1646609654801,0.01458737,38430.0,38429.0,0.07991877]
[1646609656006,0.01301,38442.0,38429.0,0.29609161]
[1646609656204,0.486872,38451.0,38429.0,0.29609161]
[1646609656205,0.01463562,38446.0,38431.0,0.02584]
[1646609656404,0.3,38455.0,38441.0,0.05770191]
[1646609656600,0.01328185,38444.0,38440.0,0.19715579]
[1646609656801,0.013,38454.0,38438.0,0.130075]
[1646609657007,0.013,38454.0,38433.0,0.1]
[1646609657201,0.06109,38451.0,38433.0,0.1]
[1646609657400,0.01480991,38439.0,38433.0,0.1]
[1646609657701,0.01587807,38436.0,38433.0,0.1]
[1646609657901,0.3,38446.0,38434.0,0.1899275]
[1646609658101,0.28424386,38447.0,38434.0,0.4899275]
[1646609658302,0.130124,38440.0,38434.0,0.4899275]
[1646609658547,0.130124,38440.0,38434.0,0.1899275]
[1646609658752,0.180124,38440.0,38434.0,0.1899275]
[1646609659148,0.180124,38440.0,38435.0,0.3]
[1646609659350,0.05,38440.0,38435.0,0.4]
[1646609659751,0.05,38441.0,38435.0,0.4]
[1646609660053,0.36021,38460.0,38435.0,0.4]
[1646609660054,0.01299,38458.0,38439.0,0.065038]
[1646609660254,0.2318,38466.0,38447.0,0.07365702]
[1646609660255,0.01299,38462.0,38447.0,0.07365702]
[1646609660451,0.53879078,38464.0,38440.0,0.74533904]
[1646609660452,0.53879078,38464.0,38448.0,0.3481]
[1646609660649,0.00232076,38459.0,38457.0,0.17775592]
[1646609660853,0.7374,38471.0,38466.0,0.18589672]
[1646609660854,0.2374,38471.0,38466.0,0.18589672]
[1646609661055,0.2374,38471.0,38458.0,1.403]
[1646609661056,0.2374,38471.0,38458.0,0.9]
[1646609661251,0.2374,38471.0,38459.0,0.12584]
[1646609661447,0.2374,38471.0,38462.0,0.129996]
[1646609661949,0.2374,38471.0,38464.0,0.1757518]
[1646609662219,0.2374,38471.0,38465.0,0.113097]
[1646609662412,0.2374,38471.0,38466.0,0.3]
[1646609662611,0.2374,38471.0,38468.0,0.02584]
[1646609662816,0.0011,38472.0,38469.0,0.32020892]
[1646609663020,0.0011,38475.0,38471.0,0.39758565]
[1646609663214,0.0011,38475.0,38474.0,0.07506733]
[1646609663414,0.0011,38475.0,38474.0,0.12316733]
[1646609663615,0.0011,38475.0,38474.0,0.42316733]
[1646609663813,0.0011,38480.0,38474.0,0.42316733]
[1646609663814,0.0011,38480.0,38476.0,0.02584]
[1646609664013,0.0011,38480.0,38478.0,0.02584]
[1646609664214,0.0439881,38483.0,38482.0,0.16474591]
[1646609664413,0.0011,38492.0,38482.0,0.04922733]
[1646609664614,0.01518273,38486.0,38482.0,0.37394]
[1646609664816,0.0011,38486.0,38483.0,0.4]
[1646609665014,0.0011,38486.0,38483.0,0.1481]
[1646609665215,0.01836205,38484.0,38483.0,0.1481]
[1646609665417,0.01836205,38484.0,38483.0,0.19732733]
[1646609665418,0.0011,38484.0,38483.0,0.19732733]
[1646609665816,0.0011,38484.0,38483.0,0.49732733]
[1646609666848,0.060468,38492.0,38483.0,0.49732733]
[1646609667053,0.060468,38492.0,38483.0,0.4481]
[1646609667357,0.20954365,38491.0,38483.0,0.4481]
[1646609667553,0.05,38491.0,38483.0,0.4481]
[1646609667751,0.060468,38492.0,38483.0,0.4481]
[1646609667951,0.15863556,38490.0,38483.0,0.4481]
[1646609668154,0.18360558,38484.0,38483.0,0.0481]
[1646609668357,0.23360558,38484.0,38483.0,0.0481]
[1646609668554,0.05,38484.0,38479.0,0.004]
[1646609668752,0.114977,38486.0,38479.0,0.004]
[1646609668955,0.114977,38486.0,38480.0,0.0481]
[1646609669558,0.129969,38483.0,38480.0,0.0481]
[1646609669804,0.179969,38483.0,38480.0,0.0481]
[1646609670005,0.179969,38483.0,38480.0,0.07394]
[1646609670006,0.05,38483.0,38480.0,0.07394]
[1646609670200,0.05,38486.0,38480.0,0.07394]
[1646609670401,0.0011,38492.0,38480.0,0.07394]
[1646609670402,0.066062,38492.0,38481.0,0.01298]
[1646609670600,0.066062,38492.0,38483.0,0.17304026]
[1646609670601,0.24075413,38492.0,38483.0,0.17304026]
[1646609670899,0.19053428,38489.0,38484.0,0.0481]
[1646609671300,0.064972,38489.0,38485.0,5.0]
[1646609671515,0.0011,38492.0,38487.0,0.18074]
[1646609671704,0.0011,38495.0,38489.0,0.33074]
[1646609671905,0.0011,38495.0,38488.0,0.413047]
[1646609671906,0.2374,38502.0,38495.0,0.18074]
[1646609672103,0.2374,38502.0,38496.0,0.60288967]
[1646609672403,0.0033,38504.0,38499.0,0.22124804]
[1646609672605,0.20531538,38508.0,38501.0,0.7]
[1646609672801,0.0022,38510.0,38504.0,0.064932]
[1646609673000,0.0022,38510.0,38505.0,0.0481]
[1646609673651,0.39014143,38509.0,38505.0,0.0481]
[1646609673850,0.197001,38510.0,38492.0,0.3]
[1646609673851,0.20509833,38502.0,38492.0,0.3]
[1646609674048,0.064956,38501.0,38489.0,0.3]
[1646609674247,0.064956,38501.0,38493.0,0.04922733]
[1646609674447,0.064956,38501.0,38497.0,0.04922733]
[1646609674448,0.071856,38501.0,38497.0,0.04922733]
[1646609674648,0.071856,38501.0,38500.0,0.04922733]
[1646609674849,0.064956,38501.0,38500.0,0.0481]
[1646609675050,0.114956,38501.0,38500.0,0.0481]
[1646609675253,0.064956,38501.0,38500.0,0.0481]
[1646609675651,0.15766454,38495.0,38484.0,0.395294]
[1646609675849,0.05,38495.0,38488.0,0.04922733]
[1646609676049,0.194867,38508.0,38496.0,0.15405031]
[1646609676246,0.194867,38508.0,38497.0,0.3481]
[1646609676450,0.0069,38504.0,38499.0,0.05724483]
[1646609676648,0.0069,38504.0,38500.0,0.3481]
[1646609676855,0.0022,38510.0,38500.0,0.3481]
[1646609677051,0.0022,38510.0,38501.0,0.11298]
[1646609677318,0.0022,38510.0,38502.0,0.4981]
[1646609677517,0.0022,38511.0,38509.0,0.8]
[1646609677719,0.0022,38511.0,38501.0,0.13798]
[1646609677720,0.0022,38511.0,38510.0,0.1481]
[1646609677921,0.0022,38511.0,38510.0,0.0481]
[1646609678119,0.0022,38511.0,38504.0,0.3]
[1646609678319,0.01375962,38509.0,38504.0,0.3531]
[1646609678523,0.0091,38511.0,38510.0,0.02360851]
[1646609678720,0.0091,38511.0,38510.0,0.07170851]
[1646609678920,0.0091,38511.0,38510.0,0.12093584]
[1646609679718,0.0022,38511.0,38510.0,0.12093584]
[1646609680321,0.0091,38511.0,38510.0,0.12093584]
[1646609680527,0.0091,38511.0,38510.0,0.07170851]
[1646609680728,0.0091,38511.0,38498.0,0.0481]
[1646609680729,0.9,38510.0,38498.0,0.0481]
[1646609680949,0.129911,38503.0,38498.0,0.0481]
[1646609681252,0.129911,38503.0,38498.0,0.03880001]
[1646609681253,0.0069,38501.0,38498.0,0.03880001]
[1646609682148,0.179911,38503.0,38498.0,0.03880001]
[1646609682349,0.0069,38499.0,38498.0,0.13880001]
[1646609682550,0.0569,38499.0,38498.0,0.18802734]
[1646609683550,0.0569,38499.0,38498.0,0.08802734]
[1646609683751,0.0569,38499.0,38498.0,0.38802734]
[1646609683752,0.05,38499.0,38498.0,0.38802734]
[1646609683949,0.0069,38504.0,38498.0,0.38802734]
[1646609684150,0.064938,38505.0,38498.0,0.43880001]
[1646609684349,0.064938,38505.0,38499.0,0.1]
[1646609684549,0.0069,38503.0,38500.0,0.3481]
[1646609684796,0.0069,38503.0,38501.0,0.27203972]
[1646609684998,0.0069,38503.0,38502.0,0.3481]
[1646609685198,0.0069,38503.0,38502.0,0.148]
[1646609685602,0.02003273,38503.0,38502.0,0.148]
[1646609685798,0.0069,38503.0,38502.0,0.148]
[1646609686398,0.0069,38503.0,38502.0,0.048]
[1646609686602,0.22197335,38503.0,38502.0,0.048]
[1646609687000,0.0069,38503.0,38502.0,0.048]
[1646609688301,0.0069,38503.0,38502.0,0.348]
[1646609688755,0.05,38504.0,38503.0,0.01038855]
[1646609688954,0.618937,38516.0,38503.0,0.35848855]
[1646609689152,0.683869,38516.0,38503.0,0.45848855]
[1646609689452,0.0759206,38514.0,38503.0,0.45848855]
[1646609689652,0.0069,38513.0,38503.0,0.45848855]
[1646609689851,0.05,38506.0,38503.0,0.45848855]
[1646609690051,0.0069,38513.0,38503.0,0.45848855]
[1646609690451,0.064932,38509.0,38503.0,0.45848855]
[1646609690655,0.18065498,38508.0,38503.0,0.45848855]
[1646609690855,0.618937,38516.0,38503.0,0.15848855]
[1646609690856,0.16409794,38509.0,38503.0,0.15848855]
[1646609691054,0.0069,38506.0,38503.0,0.15848855]
[1646609691252,0.0069,38506.0,38503.0,0.05848855]
[1646609691454,0.0069,38506.0,38503.0,0.01038855]
[1646609691753,0.27903694,38509.0,38503.0,0.01038855]
[1646609691954,0.17538248,38504.0,38503.0,0.01038855]
[1646609692204,0.22538248,38504.0,38503.0,0.01038855]
[1646609692604,0.22538248,38504.0,38497.0,0.004]
[1646609692605,0.9,38503.0,38497.0,0.004]
[1646609692807,0.30727336,38502.0,38497.0,0.004]
[1646609693006,0.1924415,38501.0,38497.0,0.004]
[1646609693207,0.54364772,38501.0,38497.0,0.004]
[1646609693404,0.9,38500.0,38496.0,0.02417331]
[1646609693603,0.95,38500.0,38496.0,0.02417331]
[1646609693803,0.21607956,38498.0,38496.0,0.02417331]
[1646609694204,0.9,38497.0,38481.0,0.51472817]
[1646609694405,0.23960068,38495.0,38481.0,0.3]
[1646609694605,0.37067068,38495.0,38481.0,0.3]
[1646609695006,0.20832554,38482.0,38481.0,0.3]
[1646609695210,0.20832554,38482.0,38475.0,0.3]
[1646609695407,0.05,38481.0,38475.0,0.3]
[1646609695608,0.114995,38481.0,38471.0,0.32251832]
[1646609695812,0.01783282,38480.0,38471.0,0.32251832]
[1646609696054,0.01581611,38478.0,38471.0,0.32251832]
[1646609696258,0.20951889,38476.0,38471.0,0.32251832]
[1646609696653,0.25951889,38476.0,38471.0,0.32251832]
[1646609698256,0.25951889,38476.0,38471.0,0.27971832]
[1646609698659,0.01473517,38475.0,38471.0,0.27971832]
[1646609698860,0.01404056,38480.0,38479.0,0.00892606]
[1646609699058,0.1773982,38481.0,38479.0,0.00892606]
[1646609699260,0.01306409,38480.0,38479.0,0.00892606]
[1646609700207,0.26782525,38480.0,38479.0,0.00892606]
[1646609702009,0.26782525,38480.0,38474.0,0.3]
[1646609702207,0.26782525,38480.0,38471.0,0.27971832]
[1646609702208,0.24282525,38480.0,38472.0,0.3]
[1646609702408,0.24282525,38480.0,38476.0,0.001]
[1646609702609,0.02527385,38480.0,38476.0,0.001]
[1646609702808,0.00027385,38480.0,38476.0,0.001]
[1646609703761,0.00027385,38480.0,38476.0,0.2112296]
[1646609703959,0.00027385,38480.0,38477.0,0.37713418]
[1646609704258,0.00027385,38480.0,38478.0,0.4171214]
[1646609704458,0.15,38496.0,38480.0,0.00012234]
[1646609704656,0.4804,38497.0,38485.0,0.21140335]
[1646609704854,0.15,38498.0,38486.0,0.21140335]
[1646609704855,0.21925803,38496.0,38486.0,0.21140335]
[1646609705057,0.41802855,38496.0,38486.0,0.21140335]
[1646609705259,0.15,38498.0,38489.0,0.21719517]
[1646609705459,0.01298,38501.0,38489.0,0.21719517]
[1646609705658,0.415,38502.0,38489.0,0.21719517]
[1646609705857,0.415,38502.0,38489.0,0.42859852]
[1646609706459,0.415,38502.0,38492.0,0.21150954]
[1646609706460,0.19492255,38500.0,38492.0,0.21150954]
[1646609706657,0.19492255,38500.0,38493.0,0.21150954]
[1646609707058,0.19492255,38500.0,38491.0,0.21150954]
[1646609707302,0.14492255,38500.0,38491.0,0.21150954]
[1646609708104,0.19492255,38500.0,38492.0,0.21150954]
[1646609708504,0.05,38500.0,38492.0,0.21150954]
[1646609708703,0.64291768,38502.0,38493.0,0.21150954]
[1646609709103,0.64291768,38502.0,38492.0,0.51150954]
[1646609709303,0.64291768,38502.0,38493.0,0.21150954]
[1646609709504,0.18067566,38500.0,38493.0,0.21150954]
[1646609709803,0.23067566,38500.0,38493.0,0.21150954]
[1646609710203,0.0569,38500.0,38493.0,0.21150954]
[1646609710406,0.01147693,38499.0,38495.0,0.21150954]
[1646609710608,0.01145875,38497.0,38496.0,0.3]
[1646609710806,0.0069,38500.0,38497.0,0.00635704]
[1646609711056,0.002,38503.0,38498.0,0.27736692]
[1646609711057,0.02577021,38499.0,38498.0,0.27736692]
[1646609711255,0.002,38503.0,38498.0,0.62659425]
[1646609711459,0.002,38503.0,38501.0,0.21144641]
[1646609711653,0.002,38503.0,38502.0,0.3]
[1646609713856,0.0719022,38515.0,38505.0,0.16705825]
[1646609714060,0.05,38511.0,38506.0,0.3]
[1646609714257,0.05,38515.0,38505.0,0.16705825]
[1646609714457,0.05,38515.0,38506.0,0.3]
[1646609714716,0.0044,38516.0,38506.0,0.61144641]
[1646609714911,0.0044,38516.0,38510.0,0.21643173]
[1646609715109,0.0044,38516.0,38511.0,0.3]
[1646609715306,0.0044,38516.0,38512.0,0.19478198]
[1646609715506,0.0044,38516.0,38513.0,0.3]
[1646609715706,0.0044,38516.0,38513.0,0.4]
[1646609715911,0.0044,38516.0,38509.0,0.31144641]
[1646609716110,0.0044,38516.0,38506.0,0.28454641]
[1646609716111,0.15431027,38514.0,38506.0,0.28454641]
[1646609716308,0.05,38513.0,38507.0,0.1]
[1646609716712,0.20431027,38514.0,38507.0,0.1]
[1646609716908,0.20431027,38514.0,38507.0,0.31144641]
[1646609717110,0.16662607,38510.0,38507.0,0.1]
[1646609717309,0.20431027,38514.0,38505.0,0.31144641]
[1646609717508,0.05,38514.0,38505.0,0.31144641]
[1646609717713,0.05,38514.0,38507.0,0.21144641]
[1646609718009,0.0044,38516.0,38508.0,0.3]
[1646609718209,0.0044,38516.0,38508.0,0.51144641]
[1646609718657,0.20592506,38514.0,38508.0,0.19117]
[1646609718858,0.21243481,38516.0,38515.0,0.16429299]
[1646609719658,0.0044,38516.0,38515.0,0.16429299]
[1646609720861,0.39224607,38526.0,38515.0,0.16429299]
[1646609721062,0.1522,38527.0,38515.0,0.16429299]
[1646609721261,0.01261941,38525.0,38515.0,0.16429299]
[1646609721462,0.94,38527.0,38515.0,0.16429299]
[1646609721463,0.15800245,38522.0,38515.0,0.16429299]
[1646609721765,0.17069898,38516.0,38515.0,0.16429299]
[1646609721966,0.47069898,38516.0,38515.0,0.16429299]
[1646609722220,1.50849898,38516.0,38515.0,0.16429299]
[1646609722408,1.61057898,38516.0,38515.0,0.16429299]
[1646609722608,0.7878,38514.0,38501.0,0.01298]
[1646609722809,0.172051,38504.0,38498.0,0.21144641]
[1646609723011,0.172051,38504.0,38497.0,0.00635704]
[1646609723012,1.0828,38503.0,38497.0,0.00635704]
[1646609723209,0.9,38501.0,38494.0,0.21144641]
[1646609723408,0.15,38498.0,38490.0,0.21144641]
[1646609723609,0.18966331,38494.0,38487.0,0.26438692]
[1646609723807,0.20688708,38490.0,38487.0,0.26438692]
[1646609724012,1.8328,38489.0,38480.0,0.31738665]
[1646609724209,0.7828,38487.0,38480.0,0.00012234]
[1646609724417,0.387032,38486.0,38480.0,0.00012234]
[1646609724610,0.15,38483.0,38479.0,0.64424487]
[1646609724811,0.18311892,38482.0,38479.0,0.64424487]
[1646609725212,0.18311892,38482.0,38471.0,0.64986001]
[1646609725213,1.76285842,38479.0,38471.0,0.64986001]
[1646609725415,1.76285842,38479.0,38471.0,0.16382284]
[1646609725416,0.96391322,38477.0,38471.0,0.16382284]
[1646609725610,0.19293812,38472.0,38471.0,0.16382284]
[1646609725811,0.7828,38475.0,38474.0,0.02505035]
[1646609726071,0.065011,38477.0,38474.0,0.02505035]
[1646609726260,0.0481,38478.0,38474.0,0.02505035]
[1646609726860,0.01298,38480.0,38474.0,0.02505035]
[1646609727063,0.17156637,38478.0,38474.0,0.02505035]
[1646609727262,0.85475483,38477.0,38474.0,0.02505035]
[1646609727461,0.85475483,38477.0,38473.0,0.001]
[1646609727462,0.7878,38475.0,38473.0,0.001]
[1646609727861,0.7878,38475.0,38471.0,0.16382284]
[1646609728062,0.17514404,38470.0,38463.0,0.1]
[1646609728266,0.84448006,38466.0,38463.0,0.04770025]
[1646609728468,0.130076,38465.0,38463.0,0.03009634]
[1646609728665,0.130076,38465.0,38452.0,0.37014169]
[1646609728666,0.9,38464.0,38452.0,0.37014169]
[1646609728866,0.9,38464.0,38450.0,0.73054359]
[1646609728867,0.7878,38463.0,38450.0,0.73054359]
[1646609729062,0.8878,38463.0,38449.0,0.4476]
[1646609729362,0.8878,38463.0,38446.0,0.37014169]
[1646609729363,0.1545533,38451.0,38446.0,0.37014169]
[1646609729575,0.1545533,38451.0,38444.0,0.21940852]
[1646609730213,0.20286704,38450.0,38444.0,0.21940852]
[1646609730413,0.1545533,38451.0,38444.0,0.21923652]
[1646609730612,0.917904,38455.0,38444.0,0.21923652]
[1646609731413,0.065051,38455.0,38445.0,0.3]
[1646609731618,0.130101,38456.0,38445.0,0.3]
[1646609731619,0.0481,38462.0,38445.0,0.3]
[1646609731815,0.06163355,38462.0,38445.0,0.36801195]
[1646609732117,0.01568205,38460.0,38444.0,0.3]
[1646609732319,0.01568205,38460.0,38437.0,0.37014169]
[1646609732320,0.7878,38455.0,38437.0,0.37014169]
[1646609732515,0.7878,38451.0,38441.0,0.002]
[1646609732714,0.17349161,38445.0,38441.0,0.002]
[1646609733314,0.05,38445.0,38441.0,0.002]
[1646609733580,0.0481,38456.0,38445.0,0.01761088]
[1646609734372,0.16295557,38447.0,38445.0,0.01761088]
[1646609734971,0.25355557,38447.0,38445.0,0.01761088]
[1646609735170,0.30355557,38447.0,38445.0,0.01761088]
[1646609735474,0.19311753,38437.0,38431.0,0.21126981]
[1646609735674,0.19311753,38437.0,38430.0,0.21126981]
[1646609735870,0.01582975,38436.0,38430.0,0.21126981]
[1646609736070,0.01575487,38435.0,38430.0,0.21126981]
[1646609736371,0.01092631,38432.0,38430.0,0.21126981]
[1646609736572,0.5,38442.0,38431.0,0.21126981]
[1646609736772,0.5,38442.0,38433.0,0.21126981]
[1646609736971,0.5,38442.0,38432.0,0.25653489]
[1646609737209,0.5,38442.0,38437.0,0.2067924]
[1646609737414,0.5,38442.0,38439.0,0.21307295]
[1646609737605,0.5,38442.0,38441.0,0.21848079]
[1646609737804,0.5,38442.0,38441.0,0.51848079]
[1646609738906,0.054997,38452.0,38442.0,0.55]
[1646609739105,0.054997,38452.0,38443.0,0.3]
[1646609739305,0.054997,38452.0,38439.0,0.06868837]
[1646609739505,0.054997,38452.0,38440.0,0.3]
[1646609739705,0.054997,38452.0,38440.0,0.4]
[1646609739906,0.0481,38456.0,38440.0,0.4]
[1646609739907,0.113142,38456.0,38449.0,0.21143838]
[1646609740114,0.9947,38461.0,38450.0,0.3]
[1646609740115,0.01299,38461.0,38450.0,0.3]
[1646609740307,0.01299,38465.0,38450.0,0.3]
[1646609740508,0.5,38464.0,38450.0,0.3]
[1646609740950,0.19339019,38460.0,38450.0,0.3]
[1646609741354,0.23839019,38460.0,38453.0,0.21760822]
[1646609741553,0.045,38460.0,38454.0,0.3]
[1646609741954,0.5,38462.0,38454.0,0.3]
[1646609742358,0.5,38462.0,38454.0,0.4]
[1646609742558,0.5,38462.0,38460.0,0.18737779]
[1646609742861,0.5,38462.0,38461.0,0.3]
[1646609743275,0.5,38462.0,38460.0,0.34551016]
[1646609743458,0.55,38462.0,38460.0,0.34551016]
[1646609743657,0.70693173,38471.0,38461.0,0.3]
[1646609744260,0.17059968,38465.0,38461.0,0.3]
[1646609744462,0.17059968,38465.0,38460.0,0.003]
[1646609744720,0.365033,38464.0,38460.0,0.003]
[1646609744919,1.152833,38464.0,38460.0,0.003]
[1646609745119,0.7878,38462.0,38448.0,0.004999]
[1646609745316,0.20221245,38452.0,38451.0,0.21109081]
[1646609745520,0.19611941,38457.0,38451.0,0.21109081]
[1646609745916,0.065048,38459.0,38451.0,0.21109081]
[1646609746119,0.993071,38465.0,38451.0,0.21109081]
[1646609746319,0.680081,38465.0,38451.0,0.21109081]
[1646609746519,0.680081,38465.0,38460.0,0.00027159]
[1646609746520,0.15497111,38464.0,38460.0,0.00027159]
[1646609746715,0.01255022,38463.0,38460.0,0.00027159]
[1646609746917,0.1657884,38462.0,38460.0,0.00027159]
[1646609747716,0.01255022,38463.0,38460.0,0.00027159]
[1646609748958,0.01305059,38462.0,38460.0,0.00027159]
[1646609749160,0.47916039,38465.0,38460.0,0.00027159]
[1646609749360,0.065025,38463.0,38460.0,0.00027159]
[1646609749763,0.7878,38463.0,38460.0,0.00027159]
[1646609749969,0.476667,38463.0,38462.0,0.75]
[1646609750161,0.36412839,38465.0,38464.0,0.2]
[1646609750361,0.75116039,38465.0,38464.0,0.2]
[1646609750562,0.85116039,38465.0,38464.0,0.2]
[1646609750768,1.07303919,38465.0,38464.0,0.2]
[1646609753406,1.07375571,38465.0,38464.0,0.2]
[1646609754209,1.07375571,38465.0,38462.0,0.25]
[1646609754210,1.61452838,38465.0,38462.0,0.25]
[1646609754406,1.174759,38463.0,38462.0,0.25856802]
[1646609754606,1.672859,38463.0,38462.0,0.25640802]
[1646609754805,1.785839,38463.0,38462.0,0.25640802]
[1646609755006,1.785839,38463.0,38462.0,0.25451802]
[1646609755207,2.07383992,38463.0,38462.0,0.24129982]
[1646609755806,2.07383992,38463.0,38460.0,0.00027159]
[1646609756061,1.624759,38461.0,38460.0,1.59e-06]
[1646609756257,1.772859,38461.0,38460.0,1.59e-06]
[1646609756655,1.472859,38461.0,38460.0,1.59e-06]
[1646609757157,1.56363167,38461.0,38460.0,1.59e-06]
[1646609757356,1.472859,38461.0,38460.0,1.59e-06]
[1646609758156,1.56363167,38461.0,38460.0,1.59e-06]
[1646609758756,1.57662167,38461.0,38460.0,1.59e-06]
[1646609759560,1.54833354,38461.0,38460.0,1.59e-06]
[1646609760502,1.4380639,38461.0,38460.0,1.59e-06]
[1646609760709,0.85028373,38461.0,38460.0,1.59e-06]
[1646609760904,0.00071652,38465.0,38460.0,1.59e-06]
[1646609761108,0.00023432,38461.0,38460.0,1.59e-06]
[1646609761702,0.00071652,38465.0,38460.0,1.59e-06]
[1646609762101,0.48780652,38465.0,38461.0,0.065038]
[1646609762301,0.3,38471.0,38461.0,0.065038]
[1646609762302,0.7878,38463.0,38461.0,0.065038]
[1646609762503,1.174759,38462.0,38461.0,0.065038]
[1646609762705,1.174759,38462.0,38460.0,0.13007759]
[1646609763006,1.174759,38461.0,38460.0,0.13007759]
[1646609763457,1.38011346,38461.0,38460.0,0.13007759]
[1646609763657,1.38011346,38461.0,38460.0,1.59e-06]
[1646609763658,1.4471855,38461.0,38460.0,1.59e-06]
[1646609763854,1.5471855,38461.0,38460.0,1.59e-06]
[1646609764055,1.34183104,38461.0,38460.0,1.59e-06]
[1646609764257,1.27476161,38461.0,38460.0,1.59e-06]
[1646609766259,1.2883948,38461.0,38460.0,1.59e-06]
[1646609766456,1.2747648,38461.0,38460.0,1.59e-06]
[1646609766767,0.7878,38453.0,38452.0,0.131106]
[1646609766956,0.79223535,38453.0,38452.0,0.131106]
[1646609767406,0.94732355,38453.0,38452.0,0.131106]
[1646609767701,0.97561249,38453.0,38452.0,0.001]
[1646609767904,0.94755787,38453.0,38452.0,0.001]
[1646609768100,0.89246967,38453.0,38452.0,0.001]
[1646609770308,0.89246967,38453.0,38452.0,0.17367015]
[1646609770506,0.88803432,38453.0,38452.0,0.17367015]
[1646609770707,0.386959,38457.0,38453.0,0.130088]
[1646609770953,0.004,38459.0,38453.0,0.430088]
[1646609771154,0.004,38459.0,38455.0,0.41480849]
[1646609771353,0.004,38459.0,38456.0,0.51090076]
[1646609771559,1.0,38461.0,38457.0,0.41237776]
[1646609771757,1.0,38461.0,38459.0,0.21090076]
[1646609771954,1.0,38461.0,38460.0,0.41235476]
[1646609772154,0.21967,38461.0,38460.0,0.71235376]
[1646609772357,0.21967,38461.0,38460.0,0.77091734]
[1646609772560,0.06502694,38473.0,38460.0,0.70874439]
[1646609772561,0.7878,38467.0,38460.0,0.70874439]
[1646609772755,0.004,38462.0,38461.0,0.201443]
[1646609772955,0.004,38462.0,38461.0,0.566469]
[1646609773155,0.7878,38467.0,38461.0,0.866469]
[1646609773357,0.7878,38467.0,38465.0,0.21194532]
[1646609773559,0.7878,38472.0,38467.0,0.21089328]
[1646609774560,0.7878,38472.0,38466.0,0.065022]
[1646609774837,0.06502694,38473.0,38466.0,0.065022]
[1646609775033,0.05,38472.0,38467.0,0.065021]
[1646609775232,0.11299,38475.0,38467.0,0.065021]
[1646609775432,0.386959,38474.0,38467.0,0.065021]
[1646609775634,0.386959,38474.0,38470.0,0.19382364]
[1646609775635,0.7878,38474.0,38470.0,0.19382364]
[1646609775835,1.274759,38473.0,38470.0,0.19382364]
[1646609777035,1.274759,38473.0,38467.0,0.065021]
[1646609777239,1.274759,38473.0,38466.0,0.70700832]
[1646609777240,0.7828,38471.0,38466.0,0.195063]
[1646609777438,0.7828,38471.0,38466.0,0.130041]
[1646609777439,0.7828,38469.0,38466.0,0.130041]
[1646609777736,1.219759,38467.0,38466.0,0.130041]
[1646609777939,1.219759,38467.0,38461.0,0.40705432]
[1646609778139,0.7828,38463.0,38461.0,0.195109]
[1646609778338,0.7828,38462.0,38461.0,0.195109]
[1646609778772,0.7878,38464.0,38461.0,0.195109]